[Event "Titled Tuesday Blitz May 23 Early 2023"]
[White "Jaracz, Pawel"]
[Black "cristianserban1"]
[WhiteFideId "1102222"]
[WhiteElo "2438"]
[BlackElo "2534"]
[Result "1-0"]
[Round "02"]
[TimeControl "180+2"]
[Date "2023.05.23"]
[WhiteClock "0:00:42"]
[BlackClock "0:00:00"]

1. d4 {[%clk 0:02:53]}  d5 {[%clk 0:03:00]} 2. c4 {[%clk 0:02:53]}  e6 {[%clk 0:03:00]} 3. Nc3 {[%clk 0:02:52]}  c6 {[%clk 0:03:01]} 4. e3 {[%clk 0:02:51]}  Nf6 {[%clk 0:03:00]} 5. Nf3 {[%clk 0:02:51]}  Nbd7 {[%clk 0:03:01]} 6. Qc2 {[%clk 0:02:50]}  Bd6 {[%clk 0:03:01]} 7. b3 {[%clk 0:02:50]}  b6 {[%clk 0:02:57]} 8. Be2 {[%clk 0:02:50]}  Bb7 {[%clk 0:02:56]} 9. O-O {[%clk 0:02:50]}  O-O {[%clk 0:02:57]} 10. Bb2 {[%clk 0:02:46]}  Rc8 {[%clk 0:02:56]} 11. Rad1 {[%clk 0:02:44]}  Qe7 {[%clk 0:02:52]} 12. Rfe1 {[%clk 0:02:40]}  c5 {[%clk 0:02:37]} 13. cxd5 {[%clk 0:02:37]}  Nxd5 {[%clk 0:02:38]} 14. Nxd5 {[%clk 0:02:34]}  Bxd5 {[%clk 0:02:39]} 15. e4 {[%clk 0:02:33]}  Bb7 {[%clk 0:02:36]} 16. d5 {[%clk 0:02:30]}  e5 {[%clk 0:02:28]} 17. g3 {[%clk 0:02:22]}  Rc7 {[%clk 0:01:55]} 18. Nh4 {[%clk 0:02:20]}  g6 {[%clk 0:01:54]} 19. Qd2 {[%clk 0:02:08]}  Bc8 {[%clk 0:01:47]} 20. Ng2 {[%clk 0:01:53]}  Nf6 {[%clk 0:01:35]} 21. f3 {[%clk 0:01:51]}  Bd7 {[%clk 0:01:08]} 22. a4 {[%clk 0:01:48]}  Nh5 {[%clk 0:00:33]} 23. Ne3 {[%clk 0:01:47]}  Ng7 {[%clk 0:00:32]} 24. Bb5 {[%clk 0:01:39]}  Bxb5 {[%clk 0:00:26]} 25. axb5 {[%clk 0:01:39]}  Qd7 {[%clk 0:00:24]} 26. Nc4 {[%clk 0:01:39]}  f6 {[%clk 0:00:24]} 27. f4 {[%clk 0:01:31]}  exf4 {[%clk 0:00:23]} 28. Nxd6 {[%clk 0:01:21]}  Qxd6 {[%clk 0:00:24]} 29. e5 {[%clk 0:01:21]}  Qd8 {[%clk 0:00:14]} 30. d6 {[%clk 0:01:20]}  Rc8 {[%clk 0:00:05]} 31. e6 {[%clk 0:01:17]}  fxg3 {[%clk 0:00:02]} 32. e7 {[%clk 0:01:15]}  gxh2+ {[%clk 0:00:03]} 33. Kxh2 {[%clk 0:01:14]}  Qd7 {[%clk 0:00:02]} 34. exf8=Q+ {[%clk 0:01:12]}  Rxf8 {[%clk 0:00:03]} 35. Re7 {[%clk 0:01:06]}  Qg4 {[%clk 0:00:03]} 36. d7 {[%clk 0:00:54]}  Qh4+ {[%clk 0:00:02]} 37. Kg1 {[%clk 0:00:54]}  Qg4+ {[%clk 0:00:02]} 38. Kh1 {[%clk 0:00:52]}  Qf3+ {[%clk 0:00:02]} 39. Kh2 {[%clk 0:00:52]}  Qh5+ {[%clk 0:00:02]} 40. Kg1 {[%clk 0:00:48]}  Qg4+ {[%clk 0:00:03]} 41. Kf2 {[%clk 0:00:48]}  Qh4+ {[%clk 0:00:02]} 42. Ke2 {[%clk 0:00:47]}  Qg4+ {[%clk 0:00:01]} 43. Kd3 {[%clk 0:00:46]}  Nf5 {[%clk 0:00:00]} 44. Re8 {[%clk 0:00:42]} 1-0


[Site "https://www.chess.com"]

[Event "Titled Tuesday Blitz May 23 Early 2023"]
[White "The_Sherman_Variation"]
[Black "Zemlyanskii, Ivan"]
[BlackFideId "24249971"]
[WhiteElo "2526"]
[BlackElo "2421"]
[Result "0-1"]
[Round "02"]
[TimeControl "180+2"]
[Date "2023.05.23"]
[WhiteClock "0:01:33"]
[BlackClock "0:01:09"]

1. b4 {[%clk 0:03:00]}  e5 {[%clk 0:02:58]} 2. a3 {[%clk 0:03:00]}  d5 {[%clk 0:02:53]} 3. Bb2 {[%clk 0:02:58]}  Bd6 {[%clk 0:02:53]} 4. e3 {[%clk 0:02:57]}  Nf6 {[%clk 0:02:48]} 5. c4 {[%clk 0:02:56]}  dxc4 {[%clk 0:02:47]} 6. Bxc4 {[%clk 0:02:57]}  O-O {[%clk 0:02:45]} 7. d4 {[%clk 0:02:51]}  e4 {[%clk 0:02:42]} 8. Ne2 {[%clk 0:02:43]}  h5 {[%clk 0:02:33]} 9. Nd2 {[%clk 0:02:40]}  Bf5 {[%clk 0:02:29]} 10. Qc2 {[%clk 0:02:30]}  Qe7 {[%clk 0:02:22]} 11. Ba2 {[%clk 0:02:17]}  Nbd7 {[%clk 0:02:09]} 12. Nc4 {[%clk 0:02:12]}  h4 {[%clk 0:01:50]} 13. h3 {[%clk 0:02:08]}  Rac8 {[%clk 0:01:38]} 14. Nf4 {[%clk 0:01:45]}  b5 {[%clk 0:01:10]} 15. Nxd6 {[%clk 0:01:41]}  cxd6 {[%clk 0:01:11]} 16. g4 {[%clk 0:01:33]}  Rxc2 {[%clk 0:01:09]} 0-1


[Site "https://www.chess.com"]

[Event "Titled Tuesday Blitz May 23 Early 2023"]
[White "Karthik Rajaa"]
[Black "tetrix83"]
[WhiteFideId "25035215"]
[WhiteElo "2215"]
[BlackElo "2526"]
[Result "1-0"]
[Round "02"]
[TimeControl "180+2"]
[Date "2023.05.23"]
[WhiteClock "0:00:16"]
[BlackClock "0:00:00"]

1. Nf3 {[%clk 0:03:00]}  Nf6 {[%clk 0:02:59]} 2. b3 {[%clk 0:03:01]}  g6 {[%clk 0:02:42]} 3. Bb2 {[%clk 0:03:00]}  Bg7 {[%clk 0:02:40]} 4. g3 {[%clk 0:03:01]}  O-O {[%clk 0:02:40]} 5. Bg2 {[%clk 0:03:01]}  d6 {[%clk 0:02:40]} 6. d4 {[%clk 0:03:00]}  Nbd7 {[%clk 0:02:39]} 7. O-O {[%clk 0:02:58]}  e5 {[%clk 0:02:39]} 8. dxe5 {[%clk 0:02:56]}  Ng4 {[%clk 0:02:39]} 9. Nbd2 {[%clk 0:02:54]}  Ngxe5 {[%clk 0:02:38]} 10. Nxe5 {[%clk 0:02:51]}  Nxe5 {[%clk 0:02:38]} 11. Qc1 {[%clk 0:02:51]}  a5 {[%clk 0:02:36]} 12. a3 {[%clk 0:02:32]}  c6 {[%clk 0:02:33]} 13. c4 {[%clk 0:02:32]}  Be6 {[%clk 0:02:32]} 14. Rd1 {[%clk 0:02:30]}  d5 {[%clk 0:02:11]} 15. Ne4 {[%clk 0:02:16]}  Qb6 {[%clk 0:01:58]} 16. Ng5 {[%clk 0:01:58]}  Qxb3 {[%clk 0:01:54]} 17. Nxe6 {[%clk 0:01:39]}  fxe6 {[%clk 0:01:51]} 18. cxd5 {[%clk 0:01:28]}  exd5 {[%clk 0:01:47]} 19. Rb1 {[%clk 0:01:27]}  Qa2 {[%clk 0:01:34]} 20. f4 {[%clk 0:01:09]}  Nc4 {[%clk 0:01:22]} 21. Bxg7 {[%clk 0:01:05]}  Kxg7 {[%clk 0:01:19]} 22. Qc3+ {[%clk 0:01:01]}  Kg8 {[%clk 0:01:11]} 23. Rxb7 {[%clk 0:01:00]}  Rf7 {[%clk 0:01:10]} 24. Rxf7 {[%clk 0:00:40]}  Kxf7 {[%clk 0:01:10]} 25. Rxd5 {[%clk 0:00:41]}  Qxe2 {[%clk 0:00:16]} 26. Rd4 {[%clk 0:00:24]}  Qe3+ {[%clk 0:00:14]} 27. Qxe3 {[%clk 0:00:24]}  Nxe3 {[%clk 0:00:15]} 28. Bxc6 {[%clk 0:00:23]}  Rc8 {[%clk 0:00:14]} 29. Bd7 {[%clk 0:00:20]}  Rc1+ {[%clk 0:00:11]} 30. Kf2 {[%clk 0:00:21]}  Nc4 {[%clk 0:00:10]} 31. a4 {[%clk 0:00:19]}  Rc2+ {[%clk 0:00:08]} 32. Kg1 {[%clk 0:00:18]}  Ne3 {[%clk 0:00:04]} 33. Bb5 {[%clk 0:00:16]}  Rg2+ {[%clk 0:00:00]} 34. Kh1 {[%clk 0:00:16]} 1-0


[Site "https://www.chess.com"]

[Event "Titled Tuesday Blitz May 23 Early 2023"]
[White "Kuzmin, Roman"]
[Black "Kushko, Dmitriy"]
[WhiteFideId "44134932"]
[BlackFideId "14162261"]
[WhiteElo "2122"]
[BlackElo "2230"]
[Result "1-0"]
[Round "02"]
[TimeControl "180+2"]
[Date "2023.05.23"]
[WhiteClock "0:00:05"]
[BlackClock "0:00:42"]

1. e4 {[%clk 0:03:00]}  g6 {[%clk 0:03:00]} 2. d4 {[%clk 0:03:00]}  Bg7 {[%clk 0:03:00]} 3. Nc3 {[%clk 0:03:00]}  d6 {[%clk 0:03:00]} 4. Be3 {[%clk 0:02:59]}  a6 {[%clk 0:03:00]} 5. h4 {[%clk 0:03:00]}  h5 {[%clk 0:02:58]} 6. Nh3 {[%clk 0:03:00]}  Bxh3 {[%clk 0:02:57]} 7. Rxh3 {[%clk 0:03:01]}  b5 {[%clk 0:02:55]} 8. Qd2 {[%clk 0:02:58]}  Nd7 {[%clk 0:02:55]} 9. a4 {[%clk 0:02:54]}  c6 {[%clk 0:02:52]} 10. f3 {[%clk 0:02:36]}  Ngf6 {[%clk 0:02:51]} 11. Bd3 {[%clk 0:02:31]}  O-O {[%clk 0:02:43]} 12. Bh6 {[%clk 0:02:27]}  e5 {[%clk 0:02:40]} 13. Bxg7 {[%clk 0:02:19]}  Kxg7 {[%clk 0:02:39]} 14. Ne2 {[%clk 0:01:50]}  exd4 {[%clk 0:02:26]} 15. Nxd4 {[%clk 0:01:51]}  c5 {[%clk 0:02:27]} 16. Nf5+ {[%clk 0:00:30]}  gxf5 {[%clk 0:02:26]} 17. Qg5+ {[%clk 0:00:30]}  Kh7 {[%clk 0:02:27]} 18. e5 {[%clk 0:00:30]}  Nxe5 {[%clk 0:02:21]} 19. Bxf5+ {[%clk 0:00:30]}  Ng6 {[%clk 0:02:21]} 20. O-O-O {[%clk 0:00:30]}  Kg7 {[%clk 0:01:30]} 21. g4 {[%clk 0:00:22]}  Nd7 {[%clk 0:00:58]} 22. Qd2 {[%clk 0:00:07]}  hxg4 {[%clk 0:00:56]} 23. fxg4 {[%clk 0:00:04]}  Nde5 {[%clk 0:00:50]} 24. h5 {[%clk 0:00:04]}  Nc4 {[%clk 0:00:51]} 25. Qc3+ {[%clk 0:00:04]}  Qf6 {[%clk 0:00:51]} 26. h6+ {[%clk 0:00:04]}  Kh7 {[%clk 0:00:45]} 27. Qxf6 {[%clk 0:00:05]}  Rae8 {[%clk 0:00:42]} 28. Qg7# {[%clk 0:00:05]} 1-0


[Site "https://www.chess.com"]

[Event "Titled Tuesday Blitz May 23 Early 2023"]
[White "Samunenkov, Ihor"]
[Black "Reprintsev, Alexander"]
[WhiteFideId "14187086"]
[BlackFideId "14100541"]
[WhiteElo "2457"]
[BlackElo "2218"]
[Result "1-0"]
[Round "02"]
[TimeControl "180+2"]
[Date "2023.05.23"]
[WhiteClock "0:00:03"]
[BlackClock "0:00:12"]

1. d4 {[%clk 0:03:00]}  d5 {[%clk 0:02:43]} 2. c4 {[%clk 0:03:00]}  e5 {[%clk 0:02:42]} 3. dxe5 {[%clk 0:02:57]}  d4 {[%clk 0:02:42]} 4. Nf3 {[%clk 0:02:56]}  Nc6 {[%clk 0:02:42]} 5. a3 {[%clk 0:02:56]}  g6 {[%clk 0:02:42]} 6. Bg5 {[%clk 0:02:50]}  Be7 {[%clk 0:02:41]} 7. Bf4 {[%clk 0:02:31]}  Bg4 {[%clk 0:02:30]} 8. Nbd2 {[%clk 0:02:26]}  Qd7 {[%clk 0:02:24]} 9. b4 {[%clk 0:02:04]}  f6 {[%clk 0:02:20]} 10. b5 {[%clk 0:02:00]}  Nxe5 {[%clk 0:02:18]} 11. Nxe5 {[%clk 0:01:53]}  fxe5 {[%clk 0:02:18]} 12. Bxe5 {[%clk 0:01:54]}  Nf6 {[%clk 0:02:14]} 13. h3 {[%clk 0:01:35]}  Be6 {[%clk 0:02:08]} 14. Nf3 {[%clk 0:01:34]}  Bxc4 {[%clk 0:02:00]} 15. Qxd4 {[%clk 0:01:31]}  Qxd4 {[%clk 0:01:59]} 16. Nxd4 {[%clk 0:01:32]}  O-O-O {[%clk 0:01:59]} 17. Rc1 {[%clk 0:01:29]}  Rxd4 {[%clk 0:01:50]} 18. Bxd4 {[%clk 0:01:27]}  Bxb5 {[%clk 0:01:50]} 19. Bc5 {[%clk 0:01:03]}  Re8 {[%clk 0:01:40]} 20. Bxe7 {[%clk 0:00:47]}  Rxe7 {[%clk 0:01:40]} 21. g3 {[%clk 0:00:46]}  Bc6 {[%clk 0:01:37]} 22. Rg1 {[%clk 0:00:46]}  Re5 {[%clk 0:01:27]} 23. Bg2 {[%clk 0:00:45]}  Bxg2 {[%clk 0:01:26]} 24. Rxg2 {[%clk 0:00:45]}  Ra5 {[%clk 0:01:27]} 25. Rc3 {[%clk 0:00:44]}  Nd5 {[%clk 0:01:25]} 26. Rd3 {[%clk 0:00:44]}  Nb6 {[%clk 0:01:23]} 27. e4 {[%clk 0:00:32]}  c5 {[%clk 0:01:22]} 28. f4 {[%clk 0:00:31]}  c4 {[%clk 0:01:23]} 29. Rc3 {[%clk 0:00:30]}  Rb5 {[%clk 0:01:19]} 30. Rd2 {[%clk 0:00:27]}  Rb1+ {[%clk 0:01:13]} 31. Ke2 {[%clk 0:00:23]}  h5 {[%clk 0:00:55]} 32. f5 {[%clk 0:00:19]}  gxf5 {[%clk 0:00:55]} 33. exf5 {[%clk 0:00:20]}  Rb5 {[%clk 0:00:50]} 34. f6 {[%clk 0:00:18]}  Re5+ {[%clk 0:00:43]} 35. Re3 {[%clk 0:00:18]}  Rf5 {[%clk 0:00:43]} 36. Rf3 {[%clk 0:00:16]}  Re5+ {[%clk 0:00:40]} 37. Kf2 {[%clk 0:00:16]}  Re8 {[%clk 0:00:40]} 38. f7 {[%clk 0:00:16]}  Rf8 {[%clk 0:00:41]} 39. g4 {[%clk 0:00:15]}  hxg4 {[%clk 0:00:41]} 40. hxg4 {[%clk 0:00:16]}  Nd7 {[%clk 0:00:41]} 41. Rxd7 {[%clk 0:00:09]}  Kxd7 {[%clk 0:00:41]} 42. g5 {[%clk 0:00:10]}  c3 {[%clk 0:00:37]} 43. g6 {[%clk 0:00:08]}  Rc8 {[%clk 0:00:31]} 44. g7 {[%clk 0:00:05]}  c2 {[%clk 0:00:30]} 45. f8=Q {[%clk 0:00:04]}  c1=Q {[%clk 0:00:30]} 46. Rf7+ {[%clk 0:00:01]}  Ke6 {[%clk 0:00:30]} 47. Qe7+ {[%clk 0:00:01]}  Kd5 {[%clk 0:00:31]} 48. Qd7+ {[%clk 0:00:02]}  Ke4 {[%clk 0:00:28]} 49. Re7+ {[%clk 0:00:02]}  Kf4 {[%clk 0:00:28]} 50. Qd6+ {[%clk 0:00:02]}  Kg4 {[%clk 0:00:20]} 51. Qg6+ {[%clk 0:00:01]}  Qg5 {[%clk 0:00:19]} 52. Qxg5+ {[%clk 0:00:01]}  Kxg5 {[%clk 0:00:19]} 53. Rxb7 {[%clk 0:00:02]}  a5 {[%clk 0:00:16]} 54. Rb5+ {[%clk 0:00:01]}  Kg6 {[%clk 0:00:17]} 55. Rxa5 {[%clk 0:00:02]}  Kxg7 {[%clk 0:00:17]} 56. Ke3 {[%clk 0:00:01]}  Kf6 {[%clk 0:00:17]} 57. Rd5 {[%clk 0:00:02]}  Ke6 {[%clk 0:00:18]} 58. Rd3 {[%clk 0:00:02]}  Rc4 {[%clk 0:00:17]} 59. Kd2 {[%clk 0:00:02]}  Ra4 {[%clk 0:00:18]} 60. Kc2 {[%clk 0:00:02]}  Ke5 {[%clk 0:00:18]} 61. Kb3 {[%clk 0:00:03]}  Rh4 {[%clk 0:00:18]} 62. a4 {[%clk 0:00:03]}  Rh1 {[%clk 0:00:17]} 63. Kb4 {[%clk 0:00:02]}  Rb1+ {[%clk 0:00:17]} 64. Ka5 {[%clk 0:00:03]}  Ke6 {[%clk 0:00:17]} 65. Ka6 {[%clk 0:00:03]}  Ke7 {[%clk 0:00:17]} 66. a5 {[%clk 0:00:04]}  Rb2 {[%clk 0:00:18]} 67. Ka7 {[%clk 0:00:04]}  Ke8 {[%clk 0:00:18]} 68. Rd6 {[%clk 0:00:03]}  Ke7 {[%clk 0:00:18]} 69. Rb6 {[%clk 0:00:03]}  Ra2 {[%clk 0:00:17]} 70. a6 {[%clk 0:00:04]}  Kd8 {[%clk 0:00:17]} 71. Kb8 {[%clk 0:00:03]}  Rc2 {[%clk 0:00:17]} 72. a7 {[%clk 0:00:02]}  Rc8+ {[%clk 0:00:16]} 73. Kb7 {[%clk 0:00:03]}  Rc7+ {[%clk 0:00:12]} 74. Ka6 {[%clk 0:00:03]} 1-0


[Site "https://www.chess.com"]

[Event "Titled Tuesday Blitz May 23 Early 2023"]
[White "SereneSalmon"]
[Black "Artemenko, Oleg"]
[BlackFideId "14201798"]
[WhiteElo "2512"]
[BlackElo "2287"]
[Result "1-0"]
[Round "02"]
[TimeControl "180+2"]
[Date "2023.05.23"]
[WhiteClock "0:00:24"]
[BlackClock "0:00:13"]

1. Nf3 {[%clk 0:03:00]}  Nf6 {[%clk 0:02:53]} 2. g3 {[%clk 0:03:00]}  g6 {[%clk 0:02:52]} 3. b3 {[%clk 0:03:00]}  Bg7 {[%clk 0:02:52]} 4. Bb2 {[%clk 0:03:01]}  d6 {[%clk 0:02:52]} 5. Bg2 {[%clk 0:03:01]}  O-O {[%clk 0:02:53]} 6. d4 {[%clk 0:03:01]}  Nbd7 {[%clk 0:02:53]} 7. O-O {[%clk 0:03:01]}  e5 {[%clk 0:02:54]} 8. dxe5 {[%clk 0:03:01]}  Ng4 {[%clk 0:02:55]} 9. Qd2 {[%clk 0:02:56]}  Ngxe5 {[%clk 0:02:54]} 10. Nxe5 {[%clk 0:02:53]}  Nxe5 {[%clk 0:02:54]} 11. c4 {[%clk 0:02:54]}  c6 {[%clk 0:02:46]} 12. Nc3 {[%clk 0:02:51]}  Qc7 {[%clk 0:02:43]} 13. Rfd1 {[%clk 0:02:43]}  Rd8 {[%clk 0:02:37]} 14. Ba3 {[%clk 0:02:43]}  Qa5 {[%clk 0:02:03]} 15. Bb2 {[%clk 0:02:05]}  Be6 {[%clk 0:01:58]} 16. Ne4 {[%clk 0:01:59]}  Qxd2 {[%clk 0:01:56]} 17. Rxd2 {[%clk 0:02:00]}  d5 {[%clk 0:01:55]} 18. cxd5 {[%clk 0:01:58]}  Bxd5 {[%clk 0:01:51]} 19. Rad1 {[%clk 0:01:55]}  Rdb8 {[%clk 0:01:07]} 20. Nc5 {[%clk 0:01:32]}  Bxg2 {[%clk 0:01:00]} 21. Kxg2 {[%clk 0:01:33]}  b6 {[%clk 0:00:48]} 22. Nd7 {[%clk 0:01:12]}  Re8 {[%clk 0:00:42]} 23. e3 {[%clk 0:01:05]}  Nxd7 {[%clk 0:00:38]} 24. Bxg7 {[%clk 0:01:06]}  Nc5 {[%clk 0:00:31]} 25. Bb2 {[%clk 0:01:00]}  Rac8 {[%clk 0:00:27]} 26. h4 {[%clk 0:01:00]}  f5 {[%clk 0:00:27]} 27. h5 {[%clk 0:00:59]}  Kf7 {[%clk 0:00:26]} 28. Rd6 {[%clk 0:00:57]}  Re6 {[%clk 0:00:25]} 29. Ba3 {[%clk 0:00:46]}  Rxd6 {[%clk 0:00:16]} 30. Rxd6 {[%clk 0:00:47]}  Ne6 {[%clk 0:00:15]} 31. hxg6+ {[%clk 0:00:43]}  hxg6 {[%clk 0:00:16]} 32. Rd7+ {[%clk 0:00:44]}  Kf6 {[%clk 0:00:17]} 33. Bb2+ {[%clk 0:00:39]}  Kg5 {[%clk 0:00:16]} 34. Rxa7 {[%clk 0:00:37]}  Rd8 {[%clk 0:00:15]} 35. Re7 {[%clk 0:00:34]}  Nc5 {[%clk 0:00:14]} 36. Be5 {[%clk 0:00:32]}  Rd2 {[%clk 0:00:14]} 37. Bf4+ {[%clk 0:00:32]}  Kf6 {[%clk 0:00:15]} 38. Rc7 {[%clk 0:00:27]}  Ne4 {[%clk 0:00:15]} 39. Rxc6+ {[%clk 0:00:27]}  Kf7 {[%clk 0:00:15]} 40. Rxb6 {[%clk 0:00:26]}  Rxf2+ {[%clk 0:00:15]} 41. Kg1 {[%clk 0:00:26]}  Rxa2 {[%clk 0:00:16]} 42. Rb7+ {[%clk 0:00:25]}  Ke6 {[%clk 0:00:15]} 43. b4 {[%clk 0:00:25]}  Nd2 {[%clk 0:00:15]} 44. Rb6+ {[%clk 0:00:23]}  Kd5 {[%clk 0:00:15]} 45. Rxg6 {[%clk 0:00:20]}  Ke4 {[%clk 0:00:16]} 46. g4 {[%clk 0:00:21]}  Nf3+ {[%clk 0:00:15]} 47. Kf1 {[%clk 0:00:21]}  Kd3 {[%clk 0:00:15]} 48. gxf5 {[%clk 0:00:19]}  Nd2+ {[%clk 0:00:16]} 49. Kg2 {[%clk 0:00:19]}  Ke4 {[%clk 0:00:16]} 50. Kg3 {[%clk 0:00:19]}  Nf1+ {[%clk 0:00:15]} 51. Kg4 {[%clk 0:00:19]}  Rg2+ {[%clk 0:00:16]} 52. Kh5 {[%clk 0:00:20]}  Rb2 {[%clk 0:00:16]} 53. f6 {[%clk 0:00:20]}  Rxb4 {[%clk 0:00:16]} 54. f7 {[%clk 0:00:20]}  Rb5+ {[%clk 0:00:16]} 55. Kh6 {[%clk 0:00:20]}  Rf5 {[%clk 0:00:17]} 56. Kg7 {[%clk 0:00:19]}  Rxf7+ {[%clk 0:00:15]} 57. Kxf7 {[%clk 0:00:20]}  Nd2 {[%clk 0:00:15]} 58. Re6+ {[%clk 0:00:20]}  Kf3 {[%clk 0:00:15]} 59. Bd6 {[%clk 0:00:20]}  Ne4 {[%clk 0:00:16]} 60. Rxe4 {[%clk 0:00:20]}  Kxe4 {[%clk 0:00:17]} 61. Bc5 {[%clk 0:00:20]}  Kd5 {[%clk 0:00:17]} 62. Bd4 {[%clk 0:00:21]}  Ke4 {[%clk 0:00:18]} 63. Kf6 {[%clk 0:00:22]}  Kf3 {[%clk 0:00:18]} 64. Ke5 {[%clk 0:00:23]}  Ke2 {[%clk 0:00:18]} 65. e4 {[%clk 0:00:23]}  Kd3 {[%clk 0:00:19]} 66. Ba7 {[%clk 0:00:24]}  Kc3 {[%clk 0:00:13]} 67. Kd5 {[%clk 0:00:24]} 1-0


[Site "https://www.chess.com"]

[Event "Titled Tuesday Blitz May 23 Early 2023"]
[White "Vakhlamov, Igor L."]
[Black "Hamley, Ryan"]
[WhiteFideId "24126748"]
[BlackFideId "30959497"]
[WhiteElo "2407"]
[BlackElo "2512"]
[Result "1-0"]
[Round "02"]
[TimeControl "180+2"]
[Date "2023.05.23"]
[WhiteClock "0:01:28"]
[BlackClock "0:00:00"]

1. e4 {[%clk 0:02:59]}  e5 {[%clk 0:02:59]} 2. Nf3 {[%clk 0:02:59]}  Nc6 {[%clk 0:03:00]} 3. Nc3 {[%clk 0:02:59]}  Nf6 {[%clk 0:03:00]} 4. Bb5 {[%clk 0:02:58]}  d6 {[%clk 0:02:42]} 5. d4 {[%clk 0:02:58]}  exd4 {[%clk 0:02:41]} 6. Nxd4 {[%clk 0:02:59]}  Bd7 {[%clk 0:02:42]} 7. Bxc6 {[%clk 0:02:59]}  bxc6 {[%clk 0:02:42]} 8. Qf3 {[%clk 0:02:59]}  g6 {[%clk 0:02:35]} 9. e5 {[%clk 0:02:53]}  Nd5 {[%clk 0:00:54]} 10. Nxc6 {[%clk 0:02:31]}  Bxc6 {[%clk 0:00:39]} 11. Nxd5 {[%clk 0:02:30]}  Bxd5 {[%clk 0:00:09]} 12. Qxd5 {[%clk 0:02:31]}  Bg7 {[%clk 0:00:08]} 13. exd6 {[%clk 0:02:13]}  cxd6 {[%clk 0:00:08]} 14. Qc6+ {[%clk 0:02:12]}  Kf8 {[%clk 0:00:08]} 15. O-O {[%clk 0:02:12]}  Rc8 {[%clk 0:00:08]} 16. Qa4 {[%clk 0:02:11]}  Qb6 {[%clk 0:00:05]} 17. c3 {[%clk 0:02:08]}  Qb7 {[%clk 0:00:03]} 18. Qa3 {[%clk 0:02:07]}  Rd8 {[%clk 0:00:02]} 19. Bf4 {[%clk 0:02:05]}  Qc6 {[%clk 0:00:01]} 20. Rad1 {[%clk 0:02:04]}  Kg8 {[%clk 0:00:01]} 21. Bxd6 {[%clk 0:02:01]}  Qb7 {[%clk 0:00:01]} 22. Qb4 {[%clk 0:01:59]}  Qc8 {[%clk 0:00:01]} 23. Be7 {[%clk 0:01:58]}  Re8 {[%clk 0:00:02]} 24. Bc5 {[%clk 0:01:54]}  h6 {[%clk 0:00:02]} 25. Bxa7 {[%clk 0:01:54]}  Kh7 {[%clk 0:00:03]} 26. Bd4 {[%clk 0:01:54]}  Re4 {[%clk 0:00:01]} 27. Rfe1 {[%clk 0:01:50]}  Rhe8 {[%clk 0:00:01]} 28. Rxe4 {[%clk 0:01:47]}  Rxe4 {[%clk 0:00:01]} 29. h3 {[%clk 0:01:45]}  Qe8 {[%clk 0:00:02]} 30. Qc4 {[%clk 0:01:37]}  Re2 {[%clk 0:00:01]} 31. Bxg7 {[%clk 0:01:36]}  Kxg7 {[%clk 0:00:02]} 32. Qd4+ {[%clk 0:01:35]}  Kh7 {[%clk 0:00:03]} 33. c4 {[%clk 0:01:33]}  Qe6 {[%clk 0:00:02]} 34. a4 {[%clk 0:01:29]}  Rxb2 {[%clk 0:00:00]} 35. Qxb2 {[%clk 0:01:28]} 1-0


[Site "https://www.chess.com"]

[Event "Titled Tuesday Blitz May 23 Early 2023"]
[White "Flynn, Jacob"]
[Black "Martinez Ramirez, Lennis"]
[WhiteFideId "2509393"]
[BlackFideId "3509079"]
[WhiteElo "2053"]
[BlackElo "2410"]
[Result "0-1"]
[Round "02"]
[TimeControl "180+2"]
[Date "2023.05.23"]
[WhiteClock "0:00:03"]
[BlackClock "0:00:11"]

1. d4 {[%clk 0:02:59]}  Nf6 {[%clk 0:02:59]} 2. c4 {[%clk 0:02:53]}  e6 {[%clk 0:02:59]} 3. Nc3 {[%clk 0:02:53]}  Bb4 {[%clk 0:02:59]} 4. Qc2 {[%clk 0:02:53]}  O-O {[%clk 0:02:58]} 5. Nf3 {[%clk 0:02:51]}  d5 {[%clk 0:02:58]} 6. cxd5 {[%clk 0:02:51]}  exd5 {[%clk 0:02:57]} 7. Bf4 {[%clk 0:02:51]}  Ne4 {[%clk 0:02:50]} 8. e3 {[%clk 0:02:50]}  c5 {[%clk 0:02:49]} 9. dxc5 {[%clk 0:02:48]}  Qa5 {[%clk 0:02:47]} 10. Rc1 {[%clk 0:02:40]}  Nc6 {[%clk 0:02:18]} 11. Bd3 {[%clk 0:02:36]}  h6 {[%clk 0:02:06]} 12. O-O {[%clk 0:02:31]}  Bxc3 {[%clk 0:02:05]} 13. bxc3 {[%clk 0:02:32]}  Nxc5 {[%clk 0:02:04]} 14. Bh7+ {[%clk 0:02:16]}  Kh8 {[%clk 0:02:04]} 15. Nd4 {[%clk 0:01:57]}  Ne6 {[%clk 0:01:45]} 16. Bg3 {[%clk 0:01:47]}  Nexd4 {[%clk 0:01:13]} 17. cxd4 {[%clk 0:01:47]}  Be6 {[%clk 0:01:11]} 18. Rb1 {[%clk 0:01:37]}  Rac8 {[%clk 0:01:11]} 19. Bd3 {[%clk 0:01:33]}  Nxd4 {[%clk 0:00:56]} 20. Qb2 {[%clk 0:01:33]}  Nf5 {[%clk 0:00:49]} 21. Qxb7 {[%clk 0:01:29]}  Nxg3 {[%clk 0:00:47]} 22. hxg3 {[%clk 0:01:29]}  Qxa2 {[%clk 0:00:41]} 23. Ra1 {[%clk 0:01:29]}  Qd2 {[%clk 0:00:26]} 24. Rfd1 {[%clk 0:01:30]}  Qc3 {[%clk 0:00:20]} 25. Qxa7 {[%clk 0:01:30]}  Bg4 {[%clk 0:00:19]} 26. f3 {[%clk 0:01:22]}  Be6 {[%clk 0:00:19]} 27. Qd4 {[%clk 0:01:22]}  Qxd4 {[%clk 0:00:19]} 28. exd4 {[%clk 0:01:22]}  Rc3 {[%clk 0:00:19]} 29. Kf2 {[%clk 0:01:18]}  g6 {[%clk 0:00:19]} 30. Rac1 {[%clk 0:01:09]}  Ra3 {[%clk 0:00:17]} 31. Ke2 {[%clk 0:01:03]}  Rb8 {[%clk 0:00:17]} 32. Rc2 {[%clk 0:00:55]}  Rbb3 {[%clk 0:00:17]} 33. Rcd2 {[%clk 0:00:45]}  h5 {[%clk 0:00:17]} 34. Kf2 {[%clk 0:00:44]}  Kg7 {[%clk 0:00:17]} 35. Be2 {[%clk 0:00:40]}  Kf6 {[%clk 0:00:17]} 36. Rd3 {[%clk 0:00:40]}  Bf5 {[%clk 0:00:15]} 37. Rxb3 {[%clk 0:00:40]}  Rxb3 {[%clk 0:00:16]} 38. Rc1 {[%clk 0:00:39]}  Rb4 {[%clk 0:00:16]} 39. Rd1 {[%clk 0:00:38]}  Rb2 {[%clk 0:00:16]} 40. Ke3 {[%clk 0:00:37]}  g5 {[%clk 0:00:15]} 41. Rd2 {[%clk 0:00:36]}  Rb3+ {[%clk 0:00:15]} 42. Kf2 {[%clk 0:00:34]}  h4 {[%clk 0:00:16]} 43. gxh4 {[%clk 0:00:34]}  gxh4 {[%clk 0:00:17]} 44. f4 {[%clk 0:00:31]}  Be4 {[%clk 0:00:14]} 45. Ra2 {[%clk 0:00:25]}  Kf5 {[%clk 0:00:15]} 46. Ra7 {[%clk 0:00:24]}  f6 {[%clk 0:00:15]} 47. Rh7 {[%clk 0:00:23]}  Rb2 {[%clk 0:00:13]} 48. Ke3 {[%clk 0:00:16]}  Rb3+ {[%clk 0:00:13]} 49. Kf2 {[%clk 0:00:16]}  Kxf4 {[%clk 0:00:13]} 50. Rxh4+ {[%clk 0:00:16]}  Kg5 {[%clk 0:00:14]} 51. Rg4+ {[%clk 0:00:16]}  Kf5 {[%clk 0:00:14]} 52. Rg3 {[%clk 0:00:16]}  Rb4 {[%clk 0:00:14]} 53. Bg4+ {[%clk 0:00:10]}  Kf4 {[%clk 0:00:13]} 54. Be2 {[%clk 0:00:10]}  Rxd4 {[%clk 0:00:13]} 55. Rg4+ {[%clk 0:00:09]}  Ke5 {[%clk 0:00:13]} 56. Rg7 {[%clk 0:00:10]}  Rd2 {[%clk 0:00:12]} 57. Ra7 {[%clk 0:00:09]}  Bd3 {[%clk 0:00:11]} 58. Re7+ {[%clk 0:00:05]}  Kd4 {[%clk 0:00:11]} 59. g4 {[%clk 0:00:01]}  Rxe2+ {[%clk 0:00:11]} 60. Rxe2 {[%clk 0:00:02]}  Bxe2 {[%clk 0:00:11]} 61. Kxe2 {[%clk 0:00:03]} 0-1


[Site "https://www.chess.com"]